fUST/lending_fUST_20241218
["ID","MTS","AMOUNT","RATE_DAILY","PERIOD"]
[345772236,1734462638426,-7532.781,0.00024193,2]
[345772238,1734462638436,-1912.59126466,0.00024275,2]
[345772240,1734462638445,-1749.70769837,0.000244,2]
[345772242,1734462638457,-162.88356629,0.000244,2]
[345772244,1734462638467,-7736.36192288,0.000245,5]
[345772247,1734462638479,-1003.77558314,0.000245,5]
[345772774,1734462643189,-500.0,0.00023998,2]
[345772776,1734462643199,-304.89919766,0.00023998,2]
[345772783,1734462643244,-170.371893,0.00023637,2]
[345772786,1734462643253,-195.10080234,0.00023998,2]
[345772789,1734462643263,-236.16365712,0.00023998,2]
[345772792,1734462643273,-146.44766806,0.000245,5]
[345772795,1734462643285,-1278.4771933,0.000245,5]
[345773088,1734462646317,-860.48407637,0.000245,5]
[345773090,1734462646328,-237784.3933496,0.000245,5]
[345773139,1734463516516,163.923999,0.00013973,2]
[345773145,1734463698417,9280.67928102,0.000125,2]
[345773195,1734463832590,-163.923999,0.00020447,2]
[345773196,1734463832600,-300.0,0.00020999,2]
[345773197,1734463832610,-300.0,0.00020999,2]
[345773198,1734463832619,-262.88117816,0.00021,2]
[345773199,1734463832628,-236.91453113,0.00021,2]
[345773200,1734463832638,-10319.81242366,0.00021,2]
[345773201,1734463832647,-189.857987,0.00021566,2]
[345773202,1734463832657,-249.0,0.00022,2]
[345773203,1734463832667,-24900.0,0.0002218,2]
[345773204,1734463832676,-525.9142776,0.00022333,2]
[345773205,1734463832686,-1284.6388112,0.0002263,2]
[345773206,1734463832695,-152.0,0.00022728,2]
[345773207,1734463832705,-420.0,0.00022842,2]
[345773208,1734463832718,-178.827236,0.00023012,2]
[345773209,1734463832728,-420.0,0.00023099,2]
[345773210,1734463832737,-10025.96215661,0.00023113,2]
[345773211,1734463832747,-193.0,0.00023239,2]
[345773212,1734463832756,-576.078,0.0002328,2]
[345773213,1734463832766,-10025.96215661,0.00023325,2]
[345773214,1734463832775,-160.312,0.00023438,3]
[345773215,1734463832785,-1144.2843535,0.00023498,2]
[345773216,1734463832794,-245.0,0.00023762,2]
[345773217,1734463832804,-10025.96215661,0.00023775,2]
[345773218,1734463832813,-178.827236,0.00023872,2]
[345773219,1734463832822,-2632.95180498,0.00023898,2]
[345773220,1734463832831,-10025.96215661,0.00024003,2]
[345773221,1734463832840,-556.30707073,0.00024087,2]
[345773222,1734463832850,-535.53369879,0.00024104,2]
[345773223,1734463832859,-10025.96215664,0.00024152,2]
[345773224,1734463832870,-1312.98618119,0.00024164,16]
[345773225,1734463832880,-1312.0,0.00024174,20]
[345773226,1734463832890,-156.0,0.000242,2]
[345773227,1734463832904,-259.18,0.000242,2]
[345773228,1734463832913,-166.0,0.000242,2]
[345773229,1734463832922,-167.12,0.000242,2]
[345773230,1734463832932,-666.0,0.000244,2]
[345773231,1734463832942,-163.67981319,0.000244,2]
[345773232,1734463832951,-500.0,0.00024473,2]
[345773233,1734463832961,-503.8925272,0.00024473,2]
[345773234,1734463832975,-500.0,0.00024473,2]
[345773235,1734463832985,-160.35829715,0.00024473,2]
[345773236,1734463832994,-1316.0,0.00024478,26]
[345773237,1734463833004,-1431.0,0.00024497,31]
[345773238,1734463833014,-265.91772362,0.00024499,2]
[345773239,1734463833023,-290.50109452,0.00024499,2]
[345773240,1734463833032,-500.0,0.00024499,2]
[345773241,1734463833042,-338.67325512,0.00024499,2]
[345773242,1734463833051,-500.0,0.00024499,2]
[345773243,1734463833061,-404.15094072,0.00024499,2]
[345773244,1734463833071,-500.0,0.00024499,2]
[345773245,1734463833081,-386.34283587,0.00024499,2]
[345773246,1734463833091,-186.14240653,0.00024499,2]
[345773247,1734463833101,-143276.5021904,0.000245,2]
[345773248,1734463833111,-37071.67004576,0.000245,2]
[345773249,1734463833120,-102929.82196131,0.000245,5]
[345773271,1734463838830,-172.87524706,0.00023139,2]
[345773273,1734463838840,-262.55075294,0.000245,5]
[345773286,1734463838961,-1501.82190496,0.000245,5]
[345773413,1734463840364,-533.36918632,0.000245,5]
[345773414,1734463840376,-53345.00000001,0.000245,5]
[345773755,1734463895182,352.698028,0.00025569,120]
[345773772,1734464663452,47802.71388653,0.00025,120]
[345773773,1734464681261,480.41,0.000255,120]
[345773791,1734464748122,163.80524,0.00013973,2]
[345773795,1734464791583,18992.7194018,0.00025569,120]
[345773879,1734465032685,-793.91730785,0.00020599,10]
[345773881,1734465032695,-163.80524,0.00020807,2]
[345773883,1734465032705,-189.857987,0.00022892,2]
[345773885,1734465032714,-300.0,0.00023108,2]
[345773887,1734465032724,-300.0,0.00023108,2]
[345773889,1734465032734,-400.93824621,0.00023109,2]
[345774039,1734465038815,-2169.89484027,0.00023109,2]
[345774041,1734465038827,-2574.27470498,0.00023109,2]
[345774198,1734465040530,-837.82949706,0.00023109,2]
[345774199,1734465040543,-1160.85712796,0.00023109,2]
[345774200,1734465040554,-4161.10240482,0.00023109,2]
[345774201,1734465040563,-174.290669,0.00023194,2]
[345774202,1734465040572,-577.65,0.0002328,2]
[345774203,1734465040583,-3950.2522374,0.00023474,2]
[345774204,1734465040593,-251.4304054,0.00023494,2]
[345774205,1734465040602,-153.0,0.000244,2]
[345774206,1734465040611,-213.8615731,0.000244,2]
[345774207,1734465040621,-457.7871141,0.000244,2]
[345774208,1734465040630,-500.0,0.00024473,2]
[345774209,1734465040639,-173.201,0.00024499,7]
[345774210,1734465040648,-203.35076616,0.00024499,2]
[345774211,1734465040657,-587.07127859,0.00024499,2]
[345774212,1734465040667,-154.03809287,0.00024499,2]
[345774213,1734465040676,-4205.89481947,0.000245,2]
[345774214,1734465040687,-442.96263939,0.000245,2]
[345774296,1734465046661,-33150.81523961,0.000245,2]
[345774851,1734465130827,5091.32754066,2.45e-05,2]
[345774854,1734465568536,-151.0,0.000245,10]
[345774855,1734465568557,-151.0,0.000245,10]
[345774856,1734465568577,-151.0,0.000245,10]
[345774857,1734465568597,-151.0,0.000245,10]
[345774862,1734465938777,163.501462,0.00013973,2]
[345775478,1734466238621,-163.501462,0.00021209,2]
[345775479,1734466238631,-1177.97484869,0.00022,4]
[345775480,1734466238640,-3000.0,0.000239,2]
[345775481,1734466238650,-3000.0,0.0002391,2]
[345775482,1734466238660,-300.0,0.00023919,2]
[345775483,1734466238669,-300.0,0.00023919,2]
[345775484,1734466238679,-3000.0,0.0002392,2]
[345775485,1734466238689,-1219.99896252,0.0002393,2]
[345775486,1734466238701,-480.02913384,0.0002393,2]
[345775487,1734466238778,-1299.97190364,0.0002393,2]
[345775488,1734466238789,-3000.0,0.0002394,2]
[345775489,1734466238799,-3000.0,0.0002395,2]
[345775490,1734466238809,-3000.0,0.0002396,2]
[345775491,1734466238819,-5657.943169,0.0002397,2]
[345775492,1734466238829,-468.52668494,0.00024045,2]
[345775493,1734466238839,-6000.0,0.000242,2]
[345775494,1734466238849,-2379.78689322,0.00024221,7]
[345775495,1734466238861,-2136.92529502,0.00024221,7]
[345775556,1734466240769,-483.28781176,0.00024221,7]
[345775558,1734466240779,-1701.20605465,0.00024399,2]
[345775560,1734466240791,-1069.03893575,0.00024399,2]
[345775565,1734466241006,-294.60884023,0.00024399,2]
[345775566,1734466241019,-53225.68846418,0.00024399,2]
[345775636,1734466243542,-1431.271958,0.00024399,2]
[345775637,1734466243648,-2940.33481207,0.00024399,2]
[345775638,1734466243659,-18535.83502288,0.00024399,2]
[345775639,1734466243668,-48463.347,0.000244,2]
[345775640,1734466243677,-151.0,0.000244,6]
[345775641,1734466243687,-151.0,0.000244,5]
[345775642,1734466243697,-151.0,0.000244,10]
[345775643,1734466243707,-151.0,0.000244,9]
[345775644,1734466243716,-3696.55782234,0.00024446,2]
[345775645,1734466243726,-173.201,0.00024499,7]
[345775646,1734466243735,-410.94989501,0.00024499,2]
[345775647,1734466243746,-25191.84702339,0.000245,5]
[345775651,1734466246551,-553.777,0.0002328,2]
[345775652,1734466246561,-4125.69300007,0.000245,5]
[345775654,1734466832929,163.349738,0.00013973,2]
[345775666,1734467300497,532.54773246,0.000125,2]
[345775667,1734467311158,2605.21000381,0.0002,2]
[345775682,1734467320621,338.20432531,0.00025559,120]
[345775683,1734467320776,7966.21707858,0.00025,120]
[345775688,1734467323855,318.3202419,0.00025,120]
[345775716,1734467432746,-486.76868694,0.00021109,2]
[345775717,1734467432756,-345.75049412,0.00021109,2]
[345775718,1734467432765,-410.94989501,0.00021208,2]
[345775719,1734467432774,-300.0,0.00021208,2]
[345775720,1734467432783,-300.0,0.00021208,2]
[345775721,1734467432792,-4693.62484218,0.00021209,2]
[345775788,1734467438962,-393415.5820015,0.00021209,2]
[345776271,1734467443791,-501777.29163137,0.00021209,2]
[345776278,1734467443848,-12666.99999085,0.00021209,2]
[345776990,1734467955073,163.193175,0.00013973,2]
[345777063,1734468635469,-5572.2364688,0.00020474,2]
[345777064,1734468635481,-460.99900805,0.00021109,2]
[345777065,1734468635492,-300.0,0.00021199,2]
[345777066,1734468635504,-300.0,0.00021199,2]
[345777067,1734468635515,-151.0,0.000212,4]
[345777068,1734468635527,-151.0,0.000212,3]
[345777069,1734468635538,-151.0,0.000212,3]
[345777070,1734468635549,-151.0,0.000212,4]
[345777071,1734468635560,-151.0,0.000212,3]
[345777072,1734468635572,-151.0,0.000212,4]
[345777073,1734468635583,-151.0,0.000212,3]
[345777074,1734468635595,-151.0,0.000212,4]
[345777075,1734468635607,-151.0,0.000212,3]
[345777076,1734468635619,-151.0,0.000212,3]
[345777077,1734468635630,-151.0,0.000212,4]
[345777078,1734468635642,-287.66492651,0.00021208,2]
[345777079,1734468635652,-44347.7757682,0.00021209,2]
[345777080,1734468635667,-8528.39086045,0.00021209,2]
[345777102,1734468637889,-1137.5886957,0.00021209,2]
[345777250,1734468639926,-6390.4662825,0.00021209,2]
[345777291,1734468642817,-2033.66840157,0.00021209,2]
[345777296,1734468645890,-199041.42652801,0.00021209,2]
[345777297,1734468645946,-4267.90201226,0.00021209,2]
[345777298,1734468655651,151.0,0.000196,2]
[345777299,1734468655968,151.0,0.000187,2]
[345777300,1734468656410,151.0,0.000179,2]
[345777301,1734468935732,174.290669,0.00020077,2]
[345777305,1734469188136,163.643927,0.00013973,2]
[345777306,1734469218635,156.164284,0.00020083,2]
[345777313,1734469552512,153.23331633,0.00020043,2]
[345777314,1734469571127,250.0,0.00019998,2]
[345777431,1734469835741,-355.5,0.00020139,2]
[345777437,1734469835797,-376.7871535,0.00020139,2]
[345777438,1734469835856,-2027.136657,0.00020139,2]
[345777439,1734469835865,-690.0000001,0.00020183,2]
[345777440,1734469835875,-172.840725,0.00020351,2]
[345777441,1734469835884,-151.0,0.000204,3]
[345777442,1734469835894,-163.643927,0.00020807,2]
[345777443,1734469835903,-1704.00323048,0.00020922,2]
[345777444,1734469835912,-564.59471017,0.000212,2]
[345777495,1734469838029,-4394.0205999,0.000212,2]
[345777498,1734469838044,-7259.49039921,0.000212,2]
[345777500,1734469838053,-300.0,0.00021208,2]
[345777502,1734469838063,-300.0,0.00021208,2]
[345777504,1734469838072,-15471.12110276,0.00021209,2]
[345777506,1734469838083,-27004.84919714,0.00021209,2]
[345777671,1734469840129,-271.38190426,0.00021209,2]
[345777672,1734469840187,-157066.06259126,0.00021209,2]
[345777695,1734469843099,-116435.96166695,0.00021209,2]
[345777718,1734469861071,151.0,0.000196,2]
[345777719,1734469861450,151.0,0.000187,2]
[345777720,1734469861824,151.0,0.000179,2]
[345777721,1734469862170,151.0,0.000171,2]
[345777722,1734469862515,151.0,0.000163,2]
[345777723,1734469862822,151.0,0.000155,2]
[345777724,1734469863139,151.0,0.000146,2]
[345777725,1734469863536,151.0,0.000138,2]
[345777726,1734469863963,151.0,0.00013,2]
[345777727,1734470002756,172.404395,0.0001994,2]
[345777728,1734470125798,5653.9627594,0.00020066,2]
[345777730,1734470139556,164.676928,0.00013973,2]
[345777731,1734470144254,617.810953,0.00019952,2]
[345777732,1734470149011,528.8369369,0.00019952,2]
[345777733,1734470258201,16537.7947621,0.00019743,2]
[345777734,1734470354137,288.0,0.0002,3]
[345777735,1734470354487,285.0,0.0002,3]
[345777736,1734470354785,285.0,0.0002,3]
[345777737,1734470355061,285.0,0.0002,3]
[345777738,1734470682274,250.0,0.00019521,2]
[345777742,1734470793524,1323.6080711,0.00019891,2]
[345777743,1734470805500,423.4822554,0.00019965,2]
[345777744,1734470807906,258.3368012,0.00019799,2]
[345777757,1734470921528,282.3215036,0.00019965,2]
[345777793,1734471037103,188.21433574,0.00019965,2]
[345777848,1734471038330,-5572.2364688,0.0002005,2]
[345777850,1734471038340,-300.0,0.00020065,2]
[345777851,1734471038349,-300.0,0.00020065,2]
[345777853,1734471038359,-19246.0372406,0.00020066,2]
[345777855,1734471038368,-548.946,0.0002015,2]
[345777856,1734471038378,-233.19306,0.00020208,2]
[345777857,1734471038388,-179.8680009,0.000203,2]
[345777858,1734471038398,-151.0,0.000204,4]
[345777859,1734471038408,-164.676928,0.00020807,2]
[345777860,1734471038417,-402.905655,0.00021092,2]
[345777861,1734471038427,-151.0,0.000212,4]
[345777862,1734471038436,-287.66492651,0.00021208,2]
[345777863,1734471038446,-4152.204753,0.00021208,5]
[345777864,1734471038455,-16927.1331033,0.00021209,2]
[345777865,1734471038468,-6791.20658393,0.00021209,2]
[345777866,1734471038480,-6824.46261746,0.00021209,2]
[345777897,1734471040396,-53325.00000001,0.00021209,2]
[345777899,1734471040408,-6295.9903985,0.00021209,2]
[345777950,1734471113300,164.806635,0.00013973,2]
[345777957,1734471759029,3658.591,0.00025569,120]
[345777959,1734471897096,3929.3469656,0.00019743,2]
[345777960,1734471942703,500.34947975,0.0002,2]
[345777962,1734472002064,164.606208,0.00013973,2]
[345777964,1734472139866,18919.0033722,0.00019743,2]
[345777965,1734472140660,300.0,0.00019742,2]
[345777966,1734472143648,300.0,0.00019742,2]
[345778018,1734472232585,-300.0,0.00020138,2]
[345778020,1734472232596,-232.39416,0.00020139,2]
[345778110,1734472238565,-4518.28792653,0.00020139,2]
[345778116,1734472240408,-42617.70286426,0.00020139,2]
[345778117,1734472240418,-549.485,0.0002015,2]
[345778118,1734472240428,-10017.81213572,0.00021209,2]
[345778191,1734472301544,1246.29,0.0002,2]
[345778199,1734472930497,164.606208,0.00013973,2]
[345778200,1734472976904,151.0,0.000255,120]
[345778201,1734473050091,151.0,0.000255,120]
[345778234,1734473432595,-526.723,0.0002015,2]
[345778236,1734473432604,-233.193061,0.00020224,2]
[345778238,1734473432614,-358.13836,0.00021125,2]
[345778239,1734473432623,-376.42867146,0.00021173,2]
[345778241,1734473432633,-460.99900805,0.00021173,2]
[345778243,1734473432642,-201.36544856,0.00021208,2]
[345778245,1734473432652,-300.0,0.00021208,2]
[345778247,1734473432661,-300.0,0.00021208,2]
[345778250,1734473432671,-194010.31776046,0.00021209,2]
[345778252,1734473432684,-1866.5,0.00021209,2]
[345778255,1734473432709,-1100.89151516,0.00021209,2]
[345778450,1734473438747,-329.84879696,0.00021209,2]
[345778549,1734473443592,-4670.48731053,0.00021209,2]
[345778571,1734473443762,-691.15,0.00021209,2]
[345778573,1734473443774,-1225.179555,0.00021209,2]
[345778615,1734473446519,-2126.7,0.00021209,2]
[345778622,1734473446581,-347.0,0.00021209,2]
[345778676,1734473843164,5000.0,0.0002,10]
[345778677,1734473847904,172.404395,0.00019469,2]
[345778678,1734473850956,5000.0,0.0002,10]
[345778679,1734473858962,5000.0,0.0002,10]
[345778680,1734473867292,5000.0,0.0002,10]
[345778681,1734473875453,5000.0,0.0002,2]
[345778682,1734473890595,5000.0,0.0002,2]
[345778684,1734473988410,164.217373,0.00013973,2]
[345778687,1734474218067,3927.5852534,0.00025569,120]
[345778691,1734474519588,3433.6715788,0.00025559,120]
[345778746,1734474632757,-504.701,0.0002015,2]
[345778748,1734474632766,-151.59737822,0.00021109,2]
[345778750,1734474632779,-361.90156581,0.00021109,2]
[345778752,1734474632789,-196.309635,0.00021208,2]
[345778766,1734474632909,-309.5711218,0.00021208,2]
[345778768,1734474632920,-494.1192432,0.00021208,2]
[345778770,1734474632930,-222.4441068,0.00021208,2]
[345778772,1734474632941,-77.5558932,0.00021208,2]
[345778774,1734474632950,-2970.98176109,0.00021209,2]
[345778776,1734474632962,-3899.99999996,0.00021209,2]
[345778897,1734474638803,-194999.9999985,0.00021209,2]
[345778898,1734474638815,-4710.13376355,0.00021209,2]
[345778899,1734474638827,-4359.417795,0.00021209,2]
[345778900,1734474638938,-1455.97218699,0.00021209,2]
[345778922,1734474641030,-2599.84144675,0.00021209,2]
[345778923,1734474641042,-7820.00000004,0.00021209,2]
[345778924,1734474641053,-52928.00000005,0.00021209,2]
[345778925,1734474641780,-18000.86199992,0.00021209,2]
[345778997,1734474646912,-6369.0,0.00021209,2]
[345778998,1734474647051,-883.72598357,0.00021209,2]
[345779004,1734474974197,164.340699,0.00013973,2]
[345779006,1734475040566,151.0,0.000255,120]
[345779014,1734475395918,709.51618078,0.0002,2]
[345779107,1734475832158,-483.807,0.0002015,2]
[345779109,1734475832168,-662.68235174,0.00021109,2]
[345779111,1734475832178,-152.0,0.00021208,2]
[345779113,1734475832189,-300.0,0.00021208,2]
[345779115,1734475832198,-300.0,0.00021208,2]
[345779117,1734475832208,-9711.51064826,0.00021209,2]
[345779119,1734475832219,-5275.0,0.00021209,2]
[345779216,1734475835994,-10570.0,0.00021209,2]
[345779217,1734475836013,-470.2201,0.00021209,2]
[345779238,1734475838039,-7378.7,0.00021209,2]
[345779440,1734475840023,-1680.65584645,0.00021209,2]
[345779442,1734475840036,-9640.75,0.00021209,2]
[345779444,1734475840048,-82668.13853392,0.00021209,2]
[345779447,1734475840059,-713.95701685,0.00021209,2]
[345779449,1734475840071,-558.52309349,0.00021209,2]
[345779795,1734475843066,-1031.62102283,0.00021209,2]
[345779798,1734475843078,-12405.00000252,0.00021209,2]
[345779806,1734475843148,-268.49733077,0.00021209,2]
[345779808,1734475843161,-7736.94295601,0.00021209,2]
[345780085,1734475845871,-1054.0,0.00021209,2]
[345780089,1734475845894,-42276.167014,0.00021209,2]
[345780091,1734475845905,-126232.34540716,0.00021209,2]
[345782287,1734475869442,164.340699,0.00013973,2]
[345784851,1734476508579,14999.999999,0.00022,29]
[345784857,1734476829384,163.486562,0.00013973,2]
[345784858,1734476942430,555.35820913,0.0002,2]
[345784859,1734476948511,645.9114144,0.00019986,2]
[345784909,1734477032287,-406.6021764,0.00020021,2]
[345784983,1734477038801,-2241.51085188,0.00020021,2]
[345784985,1734477038813,-3713.91927042,0.00020021,2]
[345784987,1734477038823,-463.688,0.0002015,2]
[345784989,1734477038832,-250.0,0.00020271,2]
[345784991,1734477038841,-180.21521658,0.00020406,2]
[345784993,1734477038850,-271.065533,0.00020477,2]
[345784995,1734477038860,-163.486562,0.00020807,2]
[345784997,1734477038869,-300.0,0.00021085,2]
[345784999,1734477038878,-300.0,0.00021085,2]
[345785001,1734477038890,-155.0,0.00021086,2]
[345785003,1734477038899,-155.0,0.00021086,2]
[345785005,1734477038909,-155.0,0.00021086,2]
[345785007,1734477038918,-155.0,0.00021086,2]
[345785009,1734477038926,-155.0,0.00021086,2]
[345785011,1734477038935,-155.0,0.00021086,2]
[345785013,1734477038945,-155.0,0.00021086,2]
[345785015,1734477038955,-155.0,0.00021086,2]
[345785017,1734477038964,-155.0,0.00021086,2]
[345785019,1734477038973,-155.0,0.00021086,2]
[345785021,1734477038982,-155.0,0.00021086,2]
[345785023,1734477038991,-155.0,0.00021086,2]
[345785025,1734477039000,-155.0,0.00021086,2]
[345785027,1734477039010,-155.0,0.00021086,2]
[345785029,1734477039020,-155.0,0.00021086,2]
[345785031,1734477039029,-155.0,0.00021086,2]
[345785033,1734477039038,-155.0,0.00021086,2]
[345785035,1734477039047,-159.64,0.00021086,2]
[345785037,1734477039056,-228.57807455,0.00021109,2]
[345785039,1734477039065,-221.0566552,0.00021178,2]
[345785041,1734477039077,-151.0,0.000212,4]
[345785043,1734477039087,-210.8989894,0.000212,2]
[345785045,1734477039097,-377501.45169985,0.00021209,2]
[345785171,1734477040237,-76127.94120235,0.00021209,2]
[345785174,1734477040249,-7701.99999992,0.00021209,2]
[345785476,1734477043164,-1550.2706156,0.00021209,2]
[345785478,1734477043176,-12328.0000016,0.00021209,2]
[345785481,1734477043198,-7808.03405191,0.00021209,2]
[345785789,1734477046408,-24742.34955232,0.00021209,2]
[345785792,1734477046421,-1927.70000001,0.00021209,2]
[345791093,1734477102818,2000.0,0.0002,2]
[345792489,1734477697915,4027.3776903,0.00019978,2]
[345792491,1734477775486,167.3178,0.00019581,2]
[345792493,1734477817148,163.698826,0.00013973,2]
[345792494,1734477870215,12724.65814499,0.00019951,2]
[345792495,1734477992290,2072.9452316,0.0002,2]
[345792525,1734478190851,213.957472,0.0001987,2]
[345792527,1734478211826,9472.73729071,0.00021999,30]
[345792594,1734478235108,2977.0,0.000198,2]
[345792622,1734478236960,-182.3,0.00020042,2]
[345792623,1734478236972,-231.50625,0.0002005,2]
[345792624,1734478236995,-671.6230198,0.0002005,2]
[345792625,1734478237004,-300.0,0.00020051,2]
[345792626,1734478237014,-83.7469802,0.00020051,2]
[345792627,1734478237026,-216.2530198,0.00020051,2]
[345792628,1734478237035,-20809.386742,0.00020052,2]
[345792629,1734478237045,-444.125,0.0002015,2]
[345792630,1734478237055,-542.95674384,0.00020551,2]
[345792631,1734478237064,-12701.13,0.00021,2]
[345792632,1734478237074,-318.345208,0.00021013,2]
[345792633,1734478237083,-612.78449452,0.00021108,2]
[345792634,1734478237092,-857.98304511,0.000212,2]
[345792635,1734478237102,-130199.33258828,0.000212,3]
[345792664,1734478238979,-2568.3708886,0.000212,3]
[345792667,1734478238991,-1075.5743532,0.000212,3]
[345792669,1734478239003,-11377.41838222,0.000212,3]
[345792823,1734478240481,-53053.05799996,0.000212,3]
[345793138,1734478243419,-500.0,0.00021173,2]
[345793140,1734478243429,-502.22346173,0.00021173,2]
[345793142,1734478243438,-4768.62799895,0.000212,3]
[345793447,1734478246427,-330124.3480303,0.000212,3]
[345793740,1734478308760,1841.67827131,0.0002,2]
[345793745,1734478386568,192.07,0.0002,2]
[345793749,1734478646224,385.52000413,0.0002,2]
[345793750,1734478739381,160.814297,0.00013973,2]
[345793752,1734479024698,151.0,0.0002557,120]
[345793753,1734479286234,502.36977,0.0002557,120]
[345793801,1734479432639,-446.569,0.0002015,2]
[345793802,1734479432649,-160.814297,0.00020447,2]
[345793803,1734479432659,-157.2339462,0.00020982,2]
[345793805,1734479432823,-1325.68499998,0.00020982,2]
[345794602,1734479440760,-536.18643267,0.00021099,2]
[345794604,1734479440774,-1613.22166199,0.000211,2]
[345794606,1734479440787,-268.05895241,0.00021173,2]
[345794608,1734479440799,-250.63241591,0.00021173,2]
[345794610,1734479440811,-300.0,0.00021198,2]
[345794613,1734479440824,-216.00307676,0.00021199,2]
[345794616,1734479440836,-509.7879126,0.00021199,2]
[345794620,1734479440848,-230.65599102,0.00021199,2]
[345794623,1734479440859,-500.0,0.00021199,2]
[345794627,1734479440871,-500.0,0.00021199,2]
[345794630,1734479440882,-500.0,0.00021199,2]
[345794632,1734479440894,-500.0,0.00021199,2]
[345794634,1734479440910,-500.0,0.00021199,2]
[345794636,1734479440925,-500.0,0.00021199,2]
[345794638,1734479440936,-500.0,0.00021199,2]
[345794640,1734479440947,-500.0,0.00021199,2]
[345794642,1734479440958,-500.0,0.00021199,2]
[345794644,1734479440970,-500.0,0.00021199,2]
[345794646,1734479440981,-500.0,0.00021199,2]
[345794648,1734479440993,-624.68692223,0.00021199,2]
[345794650,1734479441004,-500.0,0.00021199,2]
[345794652,1734479441015,-500.0,0.00021199,2]
[345794654,1734479441028,-500.0,0.00021199,2]
[345794656,1734479441040,-585.56903727,0.00021199,2]
[345794659,1734479441051,-500.0,0.00021199,2]
[345794661,1734479441063,-500.0,0.00021199,2]
[345794663,1734479441075,-500.0,0.00021199,2]
[345794665,1734479441087,-500.0,0.00021199,2]
[345794667,1734479441098,-500.0,0.00021199,2]
[345794669,1734479441109,-500.0,0.00021199,2]
[345794671,1734479441120,-500.0,0.00021199,2]
[345794673,1734479441132,-373.35887299,0.00021199,2]
[345794676,1734479441144,-500.0,0.00021199,2]
[345794678,1734479441156,-500.0,0.00021199,2]
[345794680,1734479441166,-500.0,0.00021199,2]
[345794682,1734479441177,-500.0,0.00021199,2]
[345794684,1734479441188,-500.0,0.00021199,2]
[345794686,1734479441198,-500.0,0.00021199,2]
[345794688,1734479441208,-500.0,0.00021199,2]
[345794690,1734479441219,-500.0,0.00021199,2]
[345794692,1734479441228,-500.0,0.00021199,2]
[345794694,1734479441238,-500.0,0.00021199,2]
[345794710,1734479441396,-500.0,0.00021199,2]
[345794713,1734479441418,-500.0,0.00021199,2]
[345794715,1734479441427,-500.0,0.00021199,2]
[345794717,1734479441436,-500.0,0.00021199,2]
[345794719,1734479441446,-500.0,0.00021199,2]
[345794721,1734479441455,-500.0,0.00021199,2]
[345794722,1734479441465,-500.0,0.00021199,2]
[345794724,1734479441474,-174.53614425,0.00021199,2]
[345794726,1734479441484,-500.0,0.00021199,2]
[345794728,1734479441493,-500.0,0.00021199,2]
[345794730,1734479441503,-500.0,0.00021199,2]
[345794732,1734479441512,-500.0,0.00021199,2]
[345794734,1734479441525,-500.0,0.00021199,2]
[345794736,1734479441534,-500.0,0.00021199,2]
[345794738,1734479441543,-500.0,0.00021199,2]
[345794740,1734479441553,-500.0,0.00021199,2]
[345794742,1734479441563,-500.0,0.00021199,2]
[345794744,1734479441573,-500.0,0.00021199,2]
[345794746,1734479441588,-500.0,0.00021199,2]
[345794748,1734479441597,-500.0,0.00021199,2]
[345794750,1734479441607,-500.0,0.00021199,2]
[345794752,1734479441617,-500.0,0.00021199,2]
[345794754,1734479441626,-500.0,0.00021199,2]